[Event "*** MasterClass Titled Tuesday Blitz"]
[Site "Chess.com"]
[Date "2017.08.01"]
[Round "2"]
[White "ka1ser64"]
[Black "Giraffe_Chess"]
[Result "1-0"]
[WhiteElo "2366"]
[BlackElo "2194"]
[TimeControl "180+2"]
[EndTime "13:24:22 PDT"]
[Termination "ka1ser64 won on time"]

1. d4 {[%clk 0:03:01.9]} 1... Nf6 {[%clk 0:02:58]} 2. c4 {[%clk 0:03:02.4]} 2...
e6 {[%clk 0:02:59.6]} 3. Nc3 {[%clk 0:03:03.1]} 3... Bb4 {[%clk 0:03:00]} 4. e3
{[%clk 0:03:03]} 4... O-O {[%clk 0:03:00.3]} 5. Ne2 {[%clk 0:03:04.1]} 5... d5
{[%clk 0:03:01]} 6. a3 {[%clk 0:03:05.4]} 6... Be7 {[%clk 0:03:01.3]} 7. Nf4
{[%clk 0:03:06.6]} 7... Re8 {[%clk 0:02:58.6]} 8. Bd3 {[%clk 0:03:05.2]} 8... c6
{[%clk 0:02:55.5]} 9. O-O {[%clk 0:03:04.1]} 9... Nbd7 {[%clk 0:02:56.2]} 10.
cxd5 {[%clk 0:03:05.4]} 10... exd5 {[%clk 0:02:56.7]} 11. Bd2 {[%clk 0:03:03.1]}
11... Nf8 {[%clk 0:02:57.4]} 12. f3 {[%clk 0:03:02.2]} 12... Ne6 {[%clk
0:02:58.6]} 13. Nfe2 {[%clk 0:03:03.1]} 13... b6 {[%clk 0:02:49.8]} 14. Rc1
{[%clk 0:03:04]} 14... Bb7 {[%clk 0:02:50.3]} 15. Bb1 {[%clk 0:03:05]} 15... c5
{[%clk 0:02:47.3]} 16. Be1 {[%clk 0:03:05.6]} 16... a6 {[%clk 0:02:43.7]} 17.
Bf2 {[%clk 0:03:03.5]} 17... Rc8 {[%clk 0:02:34.8]} 18. Ba2 {[%clk 0:03:03.7]}
18... h6 {[%clk 0:02:04.7]} 19. Qd2 {[%clk 0:03:04.7]} 19... b5 {[%clk
0:02:04.8]} 20. dxc5 {[%clk 0:03:00.2]} 20... Bxc5 {[%clk 0:02:05.3]} 21. Rfd1
{[%clk 0:03:01.1]} 21... Qe7 {[%clk 0:01:09]} 22. Nxd5 {[%clk 0:02:46.4]} 22...
Nxd5 {[%clk 0:01:08.9]} 23. Bxd5 {[%clk 0:02:47.1]} 23... Red8 {[%clk
0:01:10.5]} 24. e4 {[%clk 0:02:45.3]} 24... Bxf2+ {[%clk 0:01:09.7]} 25. Kxf2
{[%clk 0:02:46.5]} 25... Rxc1 {[%clk 0:01:10.8]} 26. Rxc1 {[%clk 0:02:46.2]}
26... Bxd5 {[%clk 0:01:10]} 27. exd5 {[%clk 0:02:44.6]} 27... Qa7+ {[%clk
0:01:11.4]} 28. Kf1 {[%clk 0:02:42.1]} 28... Nc7 {[%clk 0:00:47.7]} 29. d6
{[%clk 0:02:22.8]} 29... Ne8 {[%clk 0:00:44.5]} 30. Rc6 {[%clk 0:02:22.6]} 30...
Qb7 {[%clk 0:00:42.6]} 31. Qa5 {[%clk 0:01:59]} 31... Rxd6 {[%clk 0:00:22.9]}
32. Rxd6 {[%clk 0:01:58.9]} 32... Nxd6 {[%clk 0:00:23.5]} 33. Qd8+ {[%clk
0:02:00]} 33... Kh7 {[%clk 0:00:23.5]} 34. Qxd6 {[%clk 0:02:01.2]} 34... Qc8
{[%clk 0:00:23.1]} 35. Qd3+ {[%clk 0:01:59.4]} 35... g6 {[%clk 0:00:24.4]} 36.
Nc3 {[%clk 0:01:56.8]} 36... Qc6 {[%clk 0:00:25.5]} 37. Qd5 {[%clk 0:01:56.8]}
37... Qc7 {[%clk 0:00:26.8]} 38. g3 {[%clk 0:01:54.4]} 38... Qe7 {[%clk
0:00:27.6]} 39. Ne4 {[%clk 0:01:54]} 39... Qc7 {[%clk 0:00:27.6]} 40. Qc5 {[%clk
0:01:49.4]} 40... Qd8 {[%clk 0:00:26.1]} 41. Qd6 {[%clk 0:01:49.9]} 41... Qc8
{[%clk 0:00:25.1]} 42. Qe5 {[%clk 0:01:39.5]} 42... Qc1+ {[%clk 0:00:22.5]} 43.
Kg2 {[%clk 0:01:40.7]} 43... Qc2+ {[%clk 0:00:21.5]} 44. Kh3 {[%clk 0:01:39.6]}
44... Qd1 {[%clk 0:00:20.8]} 45. Qf6 {[%clk 0:00:33.9]} 45... Qf1+ {[%clk
0:00:08.5]} 46. Kh4 {[%clk 0:00:35.1]} 46... g5+ {[%clk 0:00:09.7]} 47. Kg4
{[%clk 0:00:32.4]} 47... Qc4 {[%clk 0:00:07]} 48. h4 {[%clk 0:00:24.5]} 48...
gxh4 {[%clk 0:00:07.9]} 49. Kxh4 {[%clk 0:00:24.1]} 49... Qd5 {[%clk 0:00:07.1]}
50. Nd6 {[%clk 0:00:21.5]} 1-0

[Event "*** MasterClass Titled Tuesday Blitz"]
[Site "Chess.com"]
[Date "2017.08.01"]
[Round "2"]
[White "MaestroASK"]
[Black "IIIlllII1llIl"]
[Result "0-1"]
[WhiteElo "2463"]
[BlackElo "2624"]
[TimeControl "180+2"]
[EndTime "13:24:35 PDT"]
[Termination "IIIlllII1llIl won by resignation"]

1. d4 {[%clk 0:02:57.6]} 1... Nf6 {[%clk 0:03:01.9]} 2. Bg5 {[%clk 0:02:57.1]}
2... e6 {[%clk 0:03:01.4]} 3. e3 {[%clk 0:02:57.4]} 3... c5 {[%clk 0:03:00.6]}
4. c3 {[%clk 0:02:57.6]} 4... Be7 {[%clk 0:02:59.4]} 5. Nd2 {[%clk 0:02:57.3]}
5... cxd4 {[%clk 0:02:59.3]} 6. cxd4 {[%clk 0:02:57]} 6... b6 {[%clk 0:02:59.1]}
7. Rc1 {[%clk 0:02:54.7]} 7... Bb7 {[%clk 0:02:59.6]} 8. Ngf3 {[%clk 0:02:54.2]}
8... Nc6 {[%clk 0:02:41.9]} 9. Bd3 {[%clk 0:02:52.6]} 9... Nb4 {[%clk
0:02:38.5]} 10. Bb1 {[%clk 0:02:52]} 10... Ba6 {[%clk 0:02:33.1]} 11. Bxf6
{[%clk 0:02:30.2]} 11... gxf6 {[%clk 0:02:27.4]} 12. Ne4 {[%clk 0:02:27.1]}
12... Rc8 {[%clk 0:02:05.2]} 13. Rxc8 {[%clk 0:02:22.1]} 13... Qxc8 {[%clk
0:02:07.1]} 14. a3 {[%clk 0:02:17.8]} 14... Nd5 {[%clk 0:02:00.1]} 15. Qc2
{[%clk 0:02:15.3]} 15... Qb7 {[%clk 0:01:15.2]} 16. Qd2 {[%clk 0:01:52.1]} 16...
f5 {[%clk 0:00:55.7]} 17. Nc3 {[%clk 0:01:50.6]} 17... Nxc3 {[%clk 0:00:55.6]}
18. Qxc3 {[%clk 0:01:50.2]} 18... O-O {[%clk 0:00:56.2]} 19. Bd3 {[%clk
0:01:31]} 19... Rc8 {[%clk 0:00:56.7]} 20. Bxa6 {[%clk 0:01:29.9]} 20... Rxc3
{[%clk 0:00:33.7]} 21. Bxb7 {[%clk 0:01:29.1]} 21... Rc1+ {[%clk 0:00:34.8]} 22.
Kd2 {[%clk 0:01:25.5]} 22... Rxh1 {[%clk 0:00:36.7]} 23. Bc8 {[%clk 0:01:21.9]}
23... d6 {[%clk 0:00:34.7]} 24. d5 {[%clk 0:01:19.7]} 24... exd5 {[%clk
0:00:26.9]} 25. Bxf5 {[%clk 0:01:18.6]} 25... Bf6 {[%clk 0:00:25]} 26. b3 {[%clk
0:01:18.2]} 26... Ra1 {[%clk 0:00:21.3]} 27. a4 {[%clk 0:01:18]} 27... Rf1
{[%clk 0:00:18.3]} 28. Ke2 {[%clk 0:01:15.7]} 28... Ra1 {[%clk 0:00:19.3]} 29.
Kd2 {[%clk 0:01:15.4]} 29... h6 {[%clk 0:00:17.8]} 30. g3 {[%clk 0:01:13.4]}
30... Kf8 {[%clk 0:00:18.8]} 31. h4 {[%clk 0:01:13]} 31... Ke7 {[%clk
0:00:19.3]} 32. Bc2 {[%clk 0:01:05.7]} 32... a6 {[%clk 0:00:20.5]} 33. Bd3
{[%clk 0:01:05.4]} 33... Ra2+ {[%clk 0:00:20]} 34. Bc2 {[%clk 0:01:01]} 34... b5
{[%clk 0:00:21]} 35. axb5 {[%clk 0:01:01.1]} 35... axb5 {[%clk 0:00:22.9]} 36.
Nd4 {[%clk 0:01:00.1]} 36... Bxd4 {[%clk 0:00:23.1]} 37. exd4 {[%clk 0:01:00.6]}
37... b4 {[%clk 0:00:24.3]} 38. Kc1 {[%clk 0:00:57.5]} 38... Ra1+ {[%clk
0:00:22.1]} 39. Bb1 {[%clk 0:00:57.3]} 39... Ra8 {[%clk 0:00:23]} 40. Kd2 {[%clk
0:00:56.8]} 40... Rc8 {[%clk 0:00:23.2]} 41. Bc2 {[%clk 0:00:56.8]} 41... Rc3
{[%clk 0:00:23.8]} 42. Bd1 {[%clk 0:00:57]} 42... f5 {[%clk 0:00:24]} 43. Ke2
{[%clk 0:00:48.4]} 43... Kf6 {[%clk 0:00:23.8]} 44. Kd2 {[%clk 0:00:46.9]} 44...
f4 {[%clk 0:00:24.9]} 45. g4 {[%clk 0:00:46.1]} 45... Rh3 {[%clk 0:00:25.7]} 46.
h5 {[%clk 0:00:44.8]} 46... Kg5 {[%clk 0:00:26.9]} 47. f3 {[%clk 0:00:38.9]}
47... Rh2+ {[%clk 0:00:27.8]} 48. Be2 {[%clk 0:00:37.7]} 48... Kh4 {[%clk
0:00:28.9]} 49. Kd3 {[%clk 0:00:34.1]} 49... Kg3 {[%clk 0:00:29.8]} 50. Bd1
{[%clk 0:00:34.3]} 50... Kf2 {[%clk 0:00:30.2]} 51. Kd2 {[%clk 0:00:34.5]} 51...
Kf1+ {[%clk 0:00:30.7]} 52. Kc1 {[%clk 0:00:28.7]} 52... Ke1 {[%clk 0:00:31.5]}
53. Bc2 {[%clk 0:00:28.6]} 53... Kf2 {[%clk 0:00:32.1]} 54. Bd1 {[%clk
0:00:27.4]} 54... Ke3 {[%clk 0:00:33.3]} 55. Kb1 {[%clk 0:00:25.8]} 55... Kxd4
{[%clk 0:00:33.4]} 56. Bc2 {[%clk 0:00:20.5]} 56... Kc3 {[%clk 0:00:34.3]} 57.
Bf5 {[%clk 0:00:18.6]} 57... d4 {[%clk 0:00:35.3]} 0-1

[Event "*** MasterClass Titled Tuesday Blitz"]
[Site "Chess.com"]
[Date "2017.08.01"]
[Round "2"]
[White "swayamsm"]
[Black "Gordima"]
[Result "0-1"]
[WhiteElo "2421"]
[BlackElo "2603"]
[TimeControl "180+2"]
[EndTime "13:24:36 PDT"]
[Termination "Gordima won by resignation"]

1. d4 {[%clk 0:03:01.9]} 1... Nf6 {[%clk 0:02:56.8]} 2. Nf3 {[%clk 0:03:01.7]}
2... g6 {[%clk 0:02:58.2]} 3. c4 {[%clk 0:02:57.4]} 3... Bg7 {[%clk 0:02:59.5]}
4. Nc3 {[%clk 0:02:58.4]} 4... O-O {[%clk 0:03:00.5]} 5. e4 {[%clk 0:02:59.8]}
5... d6 {[%clk 0:03:02.1]} 6. Be2 {[%clk 0:02:56.5]} 6... Bg4 {[%clk 0:02:58.6]}
7. O-O {[%clk 0:02:55.6]} 7... Nfd7 {[%clk 0:02:57.6]} 8. Be3 {[%clk 0:02:56.2]}
8... Nc6 {[%clk 0:02:55.1]} 9. d5 {[%clk 0:02:45.9]} 9... Bxf3 {[%clk 0:02:53]}
10. Bxf3 {[%clk 0:02:43.7]} 10... Na5 {[%clk 0:02:44.3]} 11. Be2 {[%clk
0:02:44.5]} 11... Nb6 {[%clk 0:02:30.1]} 12. c5 {[%clk 0:01:31.2]} 12... Nbc4
{[%clk 0:02:24.1]} 13. Qc1 {[%clk 0:01:26.7]} 13... Nxe3 {[%clk 0:02:04.7]} 14.
Qxe3 {[%clk 0:01:28.6]} 14... dxc5 {[%clk 0:02:04.2]} 15. Qxc5 {[%clk
0:01:30.2]} 15... b6 {[%clk 0:01:59.4]} 16. Qe3 {[%clk 0:01:31.6]} 16... c6
{[%clk 0:01:39.3]} 17. Rad1 {[%clk 0:01:13.5]} 17... cxd5 {[%clk 0:01:39.6]} 18.
exd5 {[%clk 0:01:03.9]} 18... Rc8 {[%clk 0:01:37.1]} 19. Rfe1 {[%clk 0:00:58.6]}
19... Bxc3 {[%clk 0:01:32.7]} 20. bxc3 {[%clk 0:00:58.5]} 20... Qd6 {[%clk
0:01:30.5]} 21. Ba6 {[%clk 0:00:51.2]} 21... Rc7 {[%clk 0:01:31.1]} 22. h4
{[%clk 0:00:52.6]} 22... h5 {[%clk 0:01:28.6]} 23. Rd4 {[%clk 0:00:41.3]} 23...
Rd8 {[%clk 0:01:22.1]} 24. Re4 {[%clk 0:00:29.1]} 24... Qxd5 {[%clk 0:01:09.4]}
25. Rxe7 {[%clk 0:00:23.2]} 25... Rxe7 {[%clk 0:01:06.3]} 26. Qxe7 {[%clk
0:00:25.1]} 26... Qd7 {[%clk 0:00:59.1]} 27. Qe5 {[%clk 0:00:20.1]} 27... Qd6
{[%clk 0:00:57.6]} 28. Qe4 {[%clk 0:00:18.7]} 28... Qf6 {[%clk 0:00:54.1]} 29.
c4 {[%clk 0:00:16.3]} 29... Rd2 {[%clk 0:00:48.8]} 30. Qe3 {[%clk 0:00:09.2]}
30... Rd4 {[%clk 0:00:47.2]} 31. g3 {[%clk 0:00:09.4]} 31... Nxc4 {[%clk
0:00:47.1]} 32. Bxc4 {[%clk 0:00:09.7]} 32... Rxc4 {[%clk 0:00:48.5]} 33. Qe8+
{[%clk 0:00:08.4]} 33... Kg7 {[%clk 0:00:49.3]} 34. Qe2 {[%clk 0:00:04.7]} 34...
Rc8 {[%clk 0:00:47.3]} 35. Kg2 {[%clk 0:00:05.3]} 35... Qc6+ {[%clk 0:00:44.2]}
36. Kg1 {[%clk 0:00:06.8]} 36... Rc7 {[%clk 0:00:44.7]} 37. Qe5+ {[%clk
0:00:08.2]} 37... Kh7 {[%clk 0:00:43.3]} 38. Rd1 {[%clk 0:00:06.7]} 38... Rc8
{[%clk 0:00:38.3]} 39. Rd6 {[%clk 0:00:05.7]} 39... Qc1+ {[%clk 0:00:37.9]} 40.
Kg2 {[%clk 0:00:06.7]} 40... Qc7 {[%clk 0:00:38.2]} 41. Qd5 {[%clk 0:00:07.6]}
41... Qc4 {[%clk 0:00:29.5]} 42. Qxc4 {[%clk 0:00:04.9]} 42... Rxc4 {[%clk
0:00:30.2]} 43. Rd7 {[%clk 0:00:06.6]} 43... Ra4 {[%clk 0:00:31.4]} 44. Rxf7+
{[%clk 0:00:08.2]} 44... Kg8 {[%clk 0:00:31.5]} 45. Rc7 {[%clk 0:00:09.5]} 45...
Rxa2 {[%clk 0:00:32.4]} 46. Kf3 {[%clk 0:00:11.2]} 46... b5 {[%clk 0:00:33]} 47.
Rb7 {[%clk 0:00:11.2]} 47... a6 {[%clk 0:00:32.5]} 48. Ke3 {[%clk 0:00:12.8]}
48... Ra4 {[%clk 0:00:33.1]} 49. f3 {[%clk 0:00:13.5]} 49... b4 {[%clk
0:00:33.9]} 50. Kf4 {[%clk 0:00:14.6]} 50... b3+ {[%clk 0:00:32.1]} 51. Kg5
{[%clk 0:00:16.2]} 51... Ra5+ {[%clk 0:00:33]} 52. Kxg6 {[%clk 0:00:13]} 52...
Rb5 {[%clk 0:00:34.3]} 53. Rg7+ {[%clk 0:00:13.6]} 53... Kf8 {[%clk 0:00:35.5]}
54. Rf7+ {[%clk 0:00:14.9]} 54... Ke8 {[%clk 0:00:36]} 0-1

[Event "*** MasterClass Titled Tuesday Blitz"]
[Site "Chess.com"]
[Date "2017.08.01"]
[Round "2"]
[White "djogrodek1"]
[Black "TryingToGetBetter94"]
[Result "0-1"]
[WhiteElo "2393"]
[BlackElo "2319"]
[TimeControl "180+2"]
[EndTime "13:24:43 PDT"]
[Termination "TryingToGetBetter94 won by resignation"]

1. e4 {[%clk 0:03:01.9]} 1... e5 {[%clk 0:03:01.4]} 2. Nf3 {[%clk 0:03:00.6]}
2... Nc6 {[%clk 0:03:02.9]} 3. Bc4 {[%clk 0:03:00.7]} 3... Nf6 {[%clk
0:03:04.2]} 4. d3 {[%clk 0:03:00.2]} 4... Bc5 {[%clk 0:03:05.8]} 5. O-O {[%clk
0:02:59.3]} 5... O-O {[%clk 0:03:07.2]} 6. Re1 {[%clk 0:02:59.9]} 6... a6 {[%clk
0:03:03]} 7. c3 {[%clk 0:02:58]} 7... d6 {[%clk 0:03:03.7]} 8. h3 {[%clk
0:02:58.8]} 8... Na5 {[%clk 0:03:02.4]} 9. b4 {[%clk 0:02:59.6]} 9... Nxc4
{[%clk 0:03:03.4]} 10. bxc5 {[%clk 0:03:00.9]} 10... Na5 {[%clk 0:03:03.7]} 11.
cxd6 {[%clk 0:03:01.4]} 11... cxd6 {[%clk 0:02:55.1]} 12. Nbd2 {[%clk
0:02:57.2]} 12... Re8 {[%clk 0:02:50.5]} 13. Nf1 {[%clk 0:02:54]} 13... d5
{[%clk 0:02:51.9]} 14. exd5 {[%clk 0:02:52.3]} 14... Qxd5 {[%clk 0:02:53.8]} 15.
c4 {[%clk 0:02:49.5]} 15... Qd6 {[%clk 0:02:46]} 16. Bb2 {[%clk 0:02:49.6]}
16... Nc6 {[%clk 0:02:46.6]} 17. Qe2 {[%clk 0:02:08.2]} 17... Bf5 {[%clk
0:02:37.5]} 18. Rad1 {[%clk 0:02:08.6]} 18... Rad8 {[%clk 0:01:55.9]} 19. Nxe5
{[%clk 0:02:00.3]} 19... Nd4 {[%clk 0:01:18.6]} 20. Bxd4 {[%clk 0:00:50.7]}
20... Qxd4 {[%clk 0:01:20.5]} 21. Qe3 {[%clk 0:00:52.2]} 21... Re6 {[%clk
0:00:11.2]} 22. Ng3 {[%clk 0:00:23.2]} 22... Bxd3 {[%clk 0:00:04]} 23. Rxd3
{[%clk 0:00:16]} 23... Qxd3 {[%clk 0:00:03.6]} 24. Nxd3 {[%clk 0:00:15.9]} 24...
Rxe3 {[%clk 0:00:04.4]} 25. Rxe3 {[%clk 0:00:17.8]} 25... h5 {[%clk 0:00:05.7]}
26. Nf5 {[%clk 0:00:17.8]} 26... g6 {[%clk 0:00:06.3]} 27. Ne7+ {[%clk 0:00:19]}
27... Kg7 {[%clk 0:00:07.7]} 28. Nf4 {[%clk 0:00:19.7]} 28... Rd4 {[%clk
0:00:08.5]} 29. Nfd5 {[%clk 0:00:19.2]} 29... Rxc4 {[%clk 0:00:09.2]} 30. Nxf6
{[%clk 0:00:20.5]} 30... Kxf6 {[%clk 0:00:11.1]} 31. Nd5+ {[%clk 0:00:22.2]}
31... Kg7 {[%clk 0:00:12.4]} 32. Re7 {[%clk 0:00:23.3]} 32... Rd4 {[%clk
0:00:11.6]} 33. Ne3 {[%clk 0:00:24.1]} 33... b5 {[%clk 0:00:12.1]} 34. Kh2
{[%clk 0:00:25.3]} 34... Ra4 {[%clk 0:00:13.4]} 35. Nd5 {[%clk 0:00:24.3]} 35...
Rxa2 {[%clk 0:00:13.2]} 36. Kg3 {[%clk 0:00:25.8]} 36... a5 {[%clk 0:00:14]} 37.
Rb7 {[%clk 0:00:26.7]} 37... b4 {[%clk 0:00:15.2]} 38. Nc7 {[%clk 0:00:27.9]}
38... Ra3+ {[%clk 0:00:15.9]} 39. f3 {[%clk 0:00:28.8]} 39... Rb3 {[%clk
0:00:15.3]} 40. Ne8+ {[%clk 0:00:29.4]} 40... Kf8 {[%clk 0:00:15.9]} 41. Nd6
{[%clk 0:00:31.3]} 41... Rd3 {[%clk 0:00:14.9]} 42. Nxf7 {[%clk 0:00:31.3]}
42... b3 {[%clk 0:00:14.8]} 43. Ne5 {[%clk 0:00:32.8]} 43... Rc3 {[%clk
0:00:15.5]} 44. Nxg6+ {[%clk 0:00:33.9]} 44... Ke8 {[%clk 0:00:16.1]} 45. Kf4
{[%clk 0:00:13.3]} 45... a4 {[%clk 0:00:17]} 46. Ke5 {[%clk 0:00:14.6]} 46... a3
{[%clk 0:00:17.4]} 47. Ke6 {[%clk 0:00:15.7]} 47... Re3+ {[%clk 0:00:18]} 48.
Ne5 {[%clk 0:00:16.8]} 48... Rxe5+ {[%clk 0:00:17.8]} 49. Kxe5 {[%clk
0:00:16.8]} 49... a2 {[%clk 0:00:19.4]} 50. Ke6 {[%clk 0:00:17.1]} 50... Kd8
{[%clk 0:00:19.7]} 51. Rxb3 {[%clk 0:00:09.4]} 51... a1=Q {[%clk 0:00:20.6]} 52.
Rb5 {[%clk 0:00:10.8]} 52... Qe1+ {[%clk 0:00:19.9]} 53. Re5 {[%clk 0:00:11.1]}
53... Qg3 {[%clk 0:00:20.9]} 54. Rxh5 {[%clk 0:00:10.5]} 54... Qg6+ {[%clk
0:00:21.9]} 55. Ke5 {[%clk 0:00:10.4]} 55... Qxh5+ {[%clk 0:00:23.2]} 56. Kf4
{[%clk 0:00:12.3]} 56... Qh4+ {[%clk 0:00:23.9]} 57. g4 {[%clk 0:00:14.2]} 57...
Qxh3 {[%clk 0:00:24.9]} 58. Kg5 {[%clk 0:00:16.1]} 58... Qxf3 {[%clk 0:00:25.5]}
0-1

[Event "*** MasterClass Titled Tuesday Blitz"]
[Site "Chess.com"]
[Date "2017.08.01"]
[Round "2"]
[White "DavidMarkosyan"]
[Black "pKiLz5Rn9b"]
[Result "1-0"]
[WhiteElo "2503"]
[BlackElo "2597"]
[TimeControl "180+2"]
[EndTime "13:24:50 PDT"]
[Termination "DavidMarkosyan won by resignation"]

1. Nf3 {[%clk 0:03:01.9]} 1... Nf6 {[%clk 0:03:00.9]} 2. c4 {[%clk 0:03:02]}
2... e6 {[%clk 0:03:01.7]} 3. Nc3 {[%clk 0:03:02.4]} 3... Bb4 {[%clk 0:02:57.7]}
4. d4 {[%clk 0:02:58.9]} 4... O-O {[%clk 0:02:55]} 5. Bd2 {[%clk 0:02:54]} 5...
d6 {[%clk 0:02:50.5]} 6. g3 {[%clk 0:02:52.9]} 6... Nc6 {[%clk 0:02:48.8]} 7.
Bg2 {[%clk 0:02:53.6]} 7... Bxc3 {[%clk 0:02:46.2]} 8. Bxc3 {[%clk 0:02:54]}
8... Ne4 {[%clk 0:02:47.8]} 9. Qc2 {[%clk 0:02:54.9]} 9... Nxc3 {[%clk
0:02:48.6]} 10. Qxc3 {[%clk 0:02:55.9]} 10... a5 {[%clk 0:02:50.1]} 11. O-O
{[%clk 0:02:56]} 11... Qe7 {[%clk 0:02:50.3]} 12. e4 {[%clk 0:02:54.3]} 12... e5
{[%clk 0:02:48.8]} 13. d5 {[%clk 0:02:54.3]} 13... Nb8 {[%clk 0:02:46.3]} 14.
Rfc1 {[%clk 0:02:47.3]} 14... Nd7 {[%clk 0:02:44.6]} 15. Ne1 {[%clk 0:02:45.5]}
15... Nc5 {[%clk 0:02:39.1]} 16. Nd3 {[%clk 0:02:46.6]} 16... b6 {[%clk
0:02:37.8]} 17. b3 {[%clk 0:02:44.2]} 17... f5 {[%clk 0:02:38.1]} 18. Nxc5
{[%clk 0:02:38.7]} 18... bxc5 {[%clk 0:02:38.5]} 19. exf5 {[%clk 0:02:35.4]}
19... Bxf5 {[%clk 0:02:38.6]} 20. Re1 {[%clk 0:02:35.2]} 20... Qf6 {[%clk
0:02:37]} 21. Re3 {[%clk 0:02:25.7]} 21... Bg6 {[%clk 0:02:19.2]} 22. Rf1 {[%clk
0:02:25.1]} 22... a4 {[%clk 0:02:10.8]} 23. b4 {[%clk 0:02:21.1]} 23... cxb4
{[%clk 0:02:07.1]} 24. Qxb4 {[%clk 0:02:22]} 24... Rfb8 {[%clk 0:01:56.8]} 25.
Qc3 {[%clk 0:02:22.7]} 25... a3 {[%clk 0:01:53.4]} 26. Qc1 {[%clk 0:02:11.9]}
26... Rb4 {[%clk 0:01:33.2]} 27. c5 {[%clk 0:02:06.2]} 27... dxc5 {[%clk
0:01:15.2]} 28. Qxc5 {[%clk 0:02:06]} 28... Qd6 {[%clk 0:01:15.7]} 29. Qc3
{[%clk 0:01:59.6]} 29... Rb2 {[%clk 0:01:06.6]} 30. Rxe5 {[%clk 0:01:46.4]}
30... Rc2 {[%clk 0:01:01.2]} 31. Qe3 {[%clk 0:01:45.1]} 31... Qc5 {[%clk
0:00:41.8]} 32. d6 {[%clk 0:01:29.9]} 32... Qxe3 {[%clk 0:00:33.3]} 33. Rxe3
{[%clk 0:01:30.5]} 33... Rb8 {[%clk 0:00:17.4]} 34. dxc7 {[%clk 0:01:28.5]}
34... Rxc7 {[%clk 0:00:17.7]} 35. Rxa3 {[%clk 0:01:29.5]} 35... h6 {[%clk
0:00:16.7]} 36. Ra8 {[%clk 0:01:27.1]} 36... Rxa8 {[%clk 0:00:17.3]} 37. Bxa8
{[%clk 0:01:27.7]} 37... Bf7 {[%clk 0:00:18.1]} 38. Be4 {[%clk 0:01:06.9]} 38...
Bxa2 {[%clk 0:00:17.4]} 39. Ra1 {[%clk 0:01:07.8]} 39... Be6 {[%clk 0:00:18.3]}
40. h4 {[%clk 0:01:07.6]} 40... Kf7 {[%clk 0:00:19.5]} 41. h5 {[%clk 0:01:08.6]}
41... Kf6 {[%clk 0:00:20.2]} 42. Ra6 {[%clk 0:01:08.1]} 42... Ke5 {[%clk
0:00:20.6]} 43. f3 {[%clk 0:01:07.2]} 43... Bc4 {[%clk 0:00:13.1]} 44. Ra5+
{[%clk 0:01:03.3]} 44... Kd4 {[%clk 0:00:11.9]} 45. Kf2 {[%clk 0:01:04.9]} 45...
Be6 {[%clk 0:00:12.8]} 46. Ra4+ {[%clk 0:01:05]} 46... Ke5 {[%clk 0:00:13.9]}
47. Ke3 {[%clk 0:01:02.5]} 47... Rc3+ {[%clk 0:00:14.4]} 48. Bd3 {[%clk
0:01:03.8]} 48... Kf6 {[%clk 0:00:10.8]} 49. Kd4 {[%clk 0:01:01.4]} 49... Rb3
{[%clk 0:00:11.1]} 50. Ra6 {[%clk 0:01:02]} 50... Kf7 {[%clk 0:00:03.8]} 51.
Rxe6 {[%clk 0:01:02.7]} 51... Rxd3+ {[%clk 0:00:04.8]} 52. Kxd3 {[%clk
0:01:03.9]} 52... Kxe6 {[%clk 0:00:06.3]} 53. Ke4 {[%clk 0:01:05.8]} 53... Kf6
{[%clk 0:00:07]} 54. f4 {[%clk 0:01:06.2]} 54... Ke6 {[%clk 0:00:06.8]} 55. g4
{[%clk 0:01:07.3]} 55... Kd6 {[%clk 0:00:03.5]} 56. Kf5 {[%clk 0:01:08.3]} 56...
Ke7 {[%clk 0:00:04.9]} 57. Kg6 {[%clk 0:01:09.6]} 57... Kf8 {[%clk 0:00:05.4]}
58. f5 {[%clk 0:01:10.2]} 58... Kg8 {[%clk 0:00:05.2]} 59. f6 {[%clk 0:01:10.7]}
59... gxf6 {[%clk 0:00:06.6]} 60. Kxf6 {[%clk 0:01:08.9]} 60... Kh7 {[%clk
0:00:05.1]} 61. Kf7 {[%clk 0:01:10]} 61... Kh8 {[%clk 0:00:02.5]} 62. Kg6 {[%clk
0:01:10.9]} 62... Kg8 {[%clk 0:00:02.2]} 63. Kxh6 {[%clk 0:01:12]} 63... Kh8
{[%clk 0:00:02.1]} 64. Kg6 {[%clk 0:01:11.3]} 64... Kg8 {[%clk 0:00:03.6]} 65.
g5 {[%clk 0:01:12.6]} 65... Kh8 {[%clk 0:00:05.5]} 66. Kf7 {[%clk 0:01:13.3]}
66... Kh7 {[%clk 0:00:05.7]} 67. g6+ {[%clk 0:01:14.7]} 1-0